fUST/lending_fUST_20250408
["ID","MTS","AMOUNT","RATE_DAILY","PERIOD"]
[357468665,1744077064715,-534.14,0.00024931,2]
[357468666,1744077064725,-500.0,0.00024931,2]
[357468667,1744077064734,-500.0,0.00024931,2]
[357468668,1744077064744,-1340.54,0.00024931,2]
[357468669,1744077064754,-542.01,0.00024931,2]
[357468670,1744077064764,-500.0,0.00024931,2]
[357468671,1744077064774,-524.96,0.00024931,2]
[357468672,1744077064784,-730.76,0.00024931,2]
[357468673,1744077064794,-1513.16,0.00024931,2]
[357468674,1744077064804,-2076.71,0.00024931,2]
[357468675,1744077064814,-2241.86,0.00024931,2]
[357468676,1744077064823,-1276.21,0.00024931,2]
[357468677,1744077064833,-720.44,0.00024931,2]
[357468678,1744077064844,-2755.26,0.00024931,2]
[357468679,1744077064853,-500.0,0.00024931,2]
[357468680,1744077064863,-500.0,0.00024931,2]
[357468681,1744077064873,-500.0,0.00024931,2]
[357468682,1744077064883,-500.0,0.00024931,2]
[357468683,1744077064892,-795.94,0.00024931,2]
[357468684,1744077064903,-500.0,0.00024931,2]
[357468685,1744077064913,-5255.83,0.00024931,2]
[357468686,1744077064924,-1073.11,0.00024931,2]
[357468687,1744077064940,-1335.7,0.00024931,2]
[357468688,1744077064951,-500.0,0.00024931,2]
[357468689,1744077064961,-1162.69,0.00024931,2]
[357468690,1744077064972,-561.08,0.00024931,2]
[357468691,1744077064983,-1291.27,0.00024931,2]
[357468692,1744077064993,-2979.5,0.00024931,2]
[357468693,1744077065003,-590.76,0.00024931,2]
[357468694,1744077065012,-1401.91,0.00024931,2]
[357468695,1744077065022,-500.0,0.00024931,2]
[357468696,1744077065032,-518.27311909,0.00024931,2]
[357468697,1744077065042,-500.0,0.00024931,2]
[357468698,1744077065051,-500.0,0.00024931,2]
[357468699,1744077065061,-500.0,0.00024931,2]
[357468700,1744077065072,-500.0,0.00024931,2]
[357468701,1744077065081,-1531.45,0.00024931,2]
[357468702,1744077065091,-500.0,0.00024931,2]
[357468703,1744077065101,-1855.88,0.00024931,2]
[357468704,1744077065111,-205.79063171,0.00024931,2]
[357468705,1744077065120,-467.31502899,0.00024931,2]
[357468706,1744077065132,-1878.37,0.00024931,2]
[357468707,1744077065142,-500.0,0.00024931,2]
[357468708,1744077065151,-500.0,0.00024931,2]
[357468709,1744077065161,-500.0,0.00024931,2]
[357468710,1744077065171,-1906.57,0.00024931,2]
[357468711,1744077065181,-500.0,0.00024931,2]
[357468712,1744077065190,-1498.13,0.00024931,2]
[357468713,1744077065200,-500.0,0.00024931,2]
[357468714,1744077065210,-1165.83,0.00024931,2]
[357468715,1744077065220,-500.0,0.00024931,2]
[357468716,1744077065230,-500.0,0.00024931,2]
[357468717,1744077065240,-500.0,0.00024931,2]
[357468718,1744077065250,-1184.51,0.00024931,2]
[357468719,1744077065260,-2926.36,0.00024931,2]
[357468720,1744077065269,-1109.48,0.00024931,2]
[357468721,1744077065279,-8763.46,0.00024931,2]
[357468722,1744077065289,-602.81,0.00024931,2]
[357468723,1744077065299,-1118.42,0.00024931,2]
[357468724,1744077065311,-500.0,0.00024931,2]
[357468725,1744077065335,-500.0,0.00024931,2]
[357468726,1744077065348,-503.7,0.00024931,2]
[357468727,1744077065359,-500.0,0.00024931,2]
[357468728,1744077065371,-500.0,0.00024931,2]
[357468729,1744077065382,-1780.71,0.00024931,2]
[357468730,1744077065393,-1494.33,0.00024931,2]
[357468731,1744077065404,-2426.96,0.00024931,2]
[357468732,1744077065414,-853.03,0.00024931,2]
[357468733,1744077065424,-500.0,0.00024931,2]
[357468734,1744077065435,-500.0,0.00024931,2]
[357468735,1744077065446,-1136.31,0.00024931,2]
[357468736,1744077065456,-2088.72,0.00024931,2]
[357468737,1744077065468,-1347.03,0.00024931,2]
[357468738,1744077065479,-157.167506,0.0002505,4]
[357468739,1744077065489,-695.11635875,0.00025167,2]
[357468740,1744077065499,-500.0,0.00025205,2]
[357468741,1744077065509,-505.48,0.00025205,2]
[357468742,1744077065520,-549.37,0.00025205,2]
[357468743,1744077065530,-989.79,0.00025205,2]
[357468744,1744077065540,-500.0,0.00025205,2]
[357468745,1744077065551,-500.0,0.00025205,2]
[357468746,1744077065561,-500.0,0.00025205,2]
[357468747,1744077065572,-571.51,0.00025205,2]
[357468748,1744077065582,-500.0,0.00025205,2]
[357468749,1744077065593,-351.79132055,0.00025205,2]
[357468750,1744077065603,-500.0,0.00025205,2]
[357468751,1744077065613,-500.0,0.00025205,2]
[357468752,1744077065623,-575.99238763,0.00025205,2]
[357468753,1744077065633,-500.0,0.00025205,2]
[357468754,1744077065643,-520.89,0.00025205,2]
[357468755,1744077065653,-500.0,0.00025205,2]
[357468756,1744077065663,-1231.93,0.00025205,2]
[357468757,1744077065674,-500.0,0.00025205,2]
[357468758,1744077065684,-612.52,0.00025205,2]
[357468759,1744077065694,-954.53,0.00025205,2]
[357468760,1744077065704,-500.0,0.00025205,2]
[357468761,1744077065714,-501.24,0.00025205,2]
[357468762,1744077065724,-943.13,0.00025205,2]
[357468763,1744077065734,-500.0,0.00025205,2]
[357468764,1744077065744,-643.13,0.00025205,2]
[357468765,1744077065755,-500.0,0.00025205,2]
[357468766,1744077065764,-500.0,0.00025205,2]
[357468767,1744077065775,-500.0,0.00025205,2]
[357468768,1744077065785,-1197.82,0.00025205,2]
[357468769,1744077065795,-711.83,0.00025205,2]
[357468770,1744077065805,-500.0,0.00025205,2]
[357468771,1744077065815,-1237.52,0.00025205,2]
[357468772,1744077065825,-500.0,0.00025205,2]
[357468773,1744077065835,-500.0,0.00025205,2]
[357468774,1744077065845,-816.65,0.00025205,2]
[357468775,1744077065855,-500.0,0.00025205,2]
[357468776,1744077065866,-357.53557895,0.00025205,2]
[357468777,1744077065877,-157.91640295,0.00025205,2]
[357468778,1744077065888,-500.0,0.00025205,2]
[357468779,1744077065899,-500.0,0.00025205,2]
[357468780,1744077065909,-171.320962,0.00025205,2]
[357468781,1744077065921,-521.4,0.00025205,2]
[357468782,1744077065933,-677.48,0.00025205,2]
[357468783,1744077065951,-500.0,0.00025205,2]
[357468784,1744077065962,-500.0,0.00025205,2]
[357468785,1744077065974,-500.0,0.00025205,2]
[357468786,1744077065985,-1015.63,0.00025205,2]
[357468787,1744077065995,-965.83,0.00025205,2]
[357468788,1744077066005,-883.8,0.00025205,2]
[357468789,1744077066018,-955.46,0.00025205,2]
[357468790,1744077066028,-500.0,0.00025205,2]
[357468791,1744077066039,-500.0,0.00025205,2]
[357468792,1744077066050,-2195.18,0.00025205,2]
[357468793,1744077066061,-500.0,0.00025205,2]
[357468794,1744077066072,-500.0,0.00025205,2]
[357468795,1744077066082,-500.0,0.00025205,2]
[357468796,1744077066093,-1724.47,0.00025205,2]
[357468797,1744077066104,-500.0,0.00025205,2]
[357468798,1744077066115,-500.0,0.00025205,2]
[357468799,1744077066125,-1673.88,0.00025205,2]
[357468800,1744077066135,-500.0,0.00025205,2]
[357468801,1744077066145,-534.14,0.00025205,2]
[357468802,1744077066154,-500.0,0.00025205,2]
[357468803,1744077066269,-500.0,0.00025205,2]
[357468804,1744077066281,-1340.54,0.00025205,2]
[357468805,1744077066291,-542.01,0.00025205,2]
[357468806,1744077066302,-500.0,0.00025205,2]
[357468807,1744077066312,-524.96,0.00025205,2]
[357468808,1744077066322,-730.76,0.00025205,2]
[357468809,1744077066332,-1513.16,0.00025205,2]
[357468810,1744077066342,-2076.71,0.00025205,2]
[357468811,1744077066351,-2241.86,0.00025205,2]
[357468812,1744077066361,-1276.21,0.00025205,2]
[357468813,1744077066370,-720.44,0.00025205,2]
[357468814,1744077066379,-2755.26,0.00025205,2]
[357468815,1744077066389,-500.0,0.00025205,2]
[357468816,1744077066398,-500.0,0.00025205,2]
[357468817,1744077066408,-500.0,0.00025205,2]
[357468818,1744077066418,-500.0,0.00025205,2]
[357468819,1744077066428,-795.94,0.00025205,2]
[357468820,1744077066437,-500.0,0.00025205,2]
[357468821,1744077066446,-5255.83,0.00025205,2]
[357468822,1744077066456,-1073.11,0.00025205,2]
[357468823,1744077066466,-1335.7,0.00025205,2]
[357468824,1744077066476,-241.15591729,0.00025205,2]
[357468825,1744077066486,-1162.69,0.00025205,2]
[357468826,1744077066496,-561.08,0.00025205,2]
[357468827,1744077066506,-1291.27,0.00025205,2]
[357468828,1744077066515,-2979.5,0.00025205,2]
[357468829,1744077066525,-590.76,0.00025205,2]
[357468830,1744077066537,-1401.91,0.00025205,2]
[357468831,1744077066547,-500.0,0.00025205,2]
[357468832,1744077066558,-500.0,0.00025205,2]
[357468833,1744077066568,-500.0,0.00025205,2]
[357468834,1744077066577,-500.0,0.00025205,2]
[357468835,1744077066587,-537.3066955,0.00025205,2]
[357468836,1744077066596,-1531.45,0.00025205,2]
[357468837,1744077066606,-500.0,0.00025205,2]
[357468838,1744077066615,-1855.88,0.00025205,2]
[357468839,1744077066625,-1878.37,0.00025205,2]
[357468840,1744077066635,-500.0,0.00025205,2]
[357468841,1744077066645,-500.0,0.00025205,2]
[357468842,1744077066654,-500.0,0.00025205,2]
[357468843,1744077066664,-500.0,0.00025205,2]
[357468844,1744077066674,-1906.57,0.00025205,2]
[357468845,1744077066684,-1498.13,0.00025205,2]
[357468846,1744077066694,-500.0,0.00025205,2]
[357468847,1744077066703,-1165.83,0.00025205,2]
[357468848,1744077066713,-500.0,0.00025205,2]
[357468849,1744077066724,-500.0,0.00025205,2]
[357468850,1744077066734,-500.0,0.00025205,2]
[357468851,1744077066744,-1184.51,0.00025205,2]
[357468852,1744077066754,-2926.36,0.00025205,2]
[357468853,1744077066763,-1109.48,0.00025205,2]
[357468854,1744077066774,-8763.46,0.00025205,2]
[357468855,1744077066784,-602.81,0.00025205,2]
[357468856,1744077066794,-1118.42,0.00025205,2]
[357468857,1744077066804,-500.0,0.00025205,2]
[357468858,1744077066813,-500.0,0.00025205,2]
[357468859,1744077066823,-503.7,0.00025205,2]
[357468860,1744077066832,-500.0,0.00025205,2]
[357468861,1744077066842,-500.0,0.00025205,2]
[357468862,1744077066851,-1780.71,0.00025205,2]
[357468863,1744077066861,-1494.33,0.00025205,2]
[357468864,1744077066870,-2426.96,0.00025205,2]
[357468865,1744077066880,-853.03,0.00025205,2]
[357468866,1744077066889,-500.0,0.00025205,2]
[357468867,1744077066899,-500.0,0.00025205,2]
[357468868,1744077066908,-1136.31,0.00025205,2]
[357468869,1744077066919,-2088.72,0.00025205,2]
[357468870,1744077066938,-1347.03,0.00025205,2]
[357468871,1744077066957,-500.0,0.00025479,2]
[357468872,1744077066972,-505.48,0.00025479,2]
[357468873,1744077066982,-549.37,0.00025479,2]
[357468874,1744077066991,-989.79,0.00025479,2]
[357468875,1744077067001,-500.0,0.00025479,2]
[357468876,1744077067011,-330.98916779,0.00025479,2]
[357468877,1744077067020,-500.0,0.00025479,2]
[357468878,1744077067030,-571.51,0.00025479,2]
[357468879,1744077067040,-266.54005165,0.00025479,2]
[357468880,1744077067050,-500.0,0.00025479,2]
[357468881,1744077067060,-500.0,0.00025479,2]
[357468882,1744077067070,-500.0,0.00025479,2]
[357468883,1744077067079,-520.89,0.00025479,2]
[357468884,1744077067089,-500.0,0.00025479,2]
[357468885,1744077067099,-1231.93,0.00025479,2]
[357468886,1744077067108,-500.0,0.00025479,2]
[357468887,1744077067117,-612.52,0.00025479,2]
[357468888,1744077067127,-954.53,0.00025479,2]
[357468889,1744077067137,-500.0,0.00025479,2]
[357468890,1744077067147,-501.24,0.00025479,2]
[357468891,1744077067156,-943.13,0.00025479,2]
[357468892,1744077067165,-500.0,0.00025479,2]
[357468893,1744077067175,-643.13,0.00025479,2]
[357468894,1744077067185,-178.06448576,0.00025479,2]
[357468895,1744077067194,-189.13849753,0.00025479,2]
[357468896,1744077067204,-500.0,0.00025479,2]
[357468897,1744077067214,-1197.82,0.00025479,2]
[357468898,1744077067224,-711.83,0.00025479,2]
[357468899,1744077067234,-500.0,0.00025479,2]
[357468900,1744077067243,-1237.52,0.00025479,2]
[357468901,1744077067253,-395.25267583,0.00025479,2]
[357468902,1744077067263,-459.00766799,0.00025479,2]
[357468903,1744077067272,-816.65,0.00025479,2]
[357468904,1744077067282,-389.45524024,0.00025479,2]
[357468905,1744077067292,-293.47734858,0.00025479,2]
[357468906,1744077067301,-500.0,0.00025479,2]
[357468907,1744077067312,-521.4,0.00025479,2]
[357468908,1744077067322,-677.48,0.00025479,2]
[357468909,1744077067332,-500.0,0.00025479,2]
[357468910,1744077067342,-500.32183657,0.00025479,2]
[357468911,1744077067352,-539.18233485,0.00025479,2]
[357468912,1744077067361,-1015.63,0.00025479,2]
[357468913,1744077067371,-965.83,0.00025479,2]
[357468914,1744077067381,-883.8,0.00025479,2]
[357468915,1744077067392,-955.46,0.00025479,2]
[357468916,1744077067402,-644.87762528,0.00025479,2]
[357468917,1744077067412,-500.0,0.00025479,2]
[357468918,1744077067422,-2195.18,0.00025479,2]
[357468919,1744077067432,-500.0,0.00025479,2]
[357468920,1744077067442,-571.90904836,0.00025479,2]
[357468921,1744077067452,-500.0,0.00025479,2]
[357468922,1744077067463,-1724.47,0.00025479,2]
[357468923,1744077067484,-500.0,0.00025479,2]
[357468924,1744077067496,-500.0,0.00025479,2]
[357468925,1744077067506,-1673.88,0.00025479,2]
[357468926,1744077067516,-500.0,0.00025479,2]
[357468927,1744077067527,-534.14,0.00025479,2]
[357468928,1744077067537,-500.0,0.00025479,2]
[357468929,1744077067548,-500.0,0.00025479,2]
[357468930,1744077067561,-1340.54,0.00025479,2]
[357468931,1744077067571,-542.01,0.00025479,2]
[357468932,1744077067581,-649.61655276,0.00025479,2]
[357468933,1744077067591,-524.96,0.00025479,2]
[357468934,1744077067601,-730.76,0.00025479,2]
[357468935,1744077067612,-1513.16,0.00025479,2]
[357468936,1744077067623,-2076.71,0.00025479,2]
[357468937,1744077067633,-2241.86,0.00025479,2]
[357468938,1744077067643,-1276.21,0.00025479,2]
[357468939,1744077067654,-720.44,0.00025479,2]
[357468940,1744077067664,-2755.26,0.00025479,2]
[357468941,1744077067675,-500.0,0.00025479,2]
[357468942,1744077067685,-500.0,0.00025479,2]
[357468943,1744077067696,-500.0,0.00025479,2]
[357468944,1744077067706,-500.0,0.00025479,2]
[357468945,1744077067717,-795.94,0.00025479,2]
[357468946,1744077067727,-500.0,0.00025479,2]
[357468947,1744077067737,-5255.83,0.00025479,2]
[357468948,1744077067747,-1073.11,0.00025479,2]
[357468949,1744077067758,-1335.7,0.00025479,2]
[357468950,1744077067768,-1162.69,0.00025479,2]
[357468951,1744077067778,-561.08,0.00025479,2]
[357468952,1744077067788,-1291.27,0.00025479,2]
[357468953,1744077067799,-2979.5,0.00025479,2]
[357468954,1744077067811,-590.76,0.00025479,2]
[357468955,1744077067821,-1401.91,0.00025479,2]
[357468956,1744077067831,-500.0,0.00025479,2]
[357468957,1744077067842,-500.0,0.00025479,2]
[357468958,1744077067851,-500.0,0.00025479,2]
[357468959,1744077067862,-500.0,0.00025479,2]
[357468960,1744077067872,-1531.45,0.00025479,2]
[357468961,1744077067883,-500.0,0.00025479,2]
[357468962,1744077067894,-1855.88,0.00025479,2]
[357468963,1744077067904,-1878.37,0.00025479,2]
[357468964,1744077067914,-500.0,0.00025479,2]
[357468965,1744077067926,-631.54552306,0.00025479,2]
[357468966,1744077067939,-500.0,0.00025479,2]
[357468967,1744077067950,-500.0,0.00025479,2]
[357468968,1744077067961,-1906.57,0.00025479,2]
[357468969,1744077067972,-1498.13,0.00025479,2]
[357468970,1744077067982,-500.0,0.00025479,2]
[357468971,1744077067993,-1165.83,0.00025479,2]
[357468972,1744077068004,-500.0,0.00025479,2]
[357468973,1744077068015,-500.0,0.00025479,2]
[357468974,1744077068026,-500.0,0.00025479,2]
[357468975,1744077068037,-1184.51,0.00025479,2]
[357468976,1744077068048,-2926.36,0.00025479,2]
[357468977,1744077068061,-1109.48,0.00025479,2]
[357468978,1744077068072,-8763.46,0.00025479,2]
[357468979,1744077068083,-602.81,0.00025479,2]
[357468980,1744077068100,-1118.42,0.00025479,2]
[357468981,1744077068111,-500.0,0.00025479,2]
[357468982,1744077068122,-500.0,0.00025479,2]
[357468983,1744077068133,-503.7,0.00025479,2]
[357468984,1744077068143,-500.0,0.00025479,2]
[357468985,1744077068155,-500.0,0.00025479,2]
[357468986,1744077068166,-1780.71,0.00025479,2]
[357468987,1744077068176,-1494.33,0.00025479,2]
[357468988,1744077068187,-2426.96,0.00025479,2]
[357468989,1744077068198,-853.03,0.00025479,2]
[357468990,1744077068209,-500.0,0.00025479,2]
[357468991,1744077068220,-500.0,0.00025479,2]
[357468992,1744077068231,-1136.31,0.00025479,2]
[357468993,1744077068242,-2088.72,0.00025479,2]
[357468994,1744077068253,-1347.03,0.00025479,2]
[357468995,1744077068264,-186.45517162,0.00025753,2]
[357468996,1744077068275,-505.48,0.00025753,2]
[357468997,1744077068286,-549.37,0.00025753,2]
[357468998,1744077068297,-989.79,0.00025753,2]
[357468999,1744077068310,-500.0,0.00025753,2]
[357469000,1744077068322,-348.42997939,0.00025753,2]
[357469001,1744077068333,-571.51,0.00025753,2]
[357469002,1744077068344,-586.91759451,0.00025753,2]
[357469003,1744077068354,-500.0,0.00025753,2]
[357469004,1744077068365,-500.0,0.00025753,2]
[357469005,1744077068375,-520.89,0.00025753,2]
[357469006,1744077068387,-500.0,0.00025753,2]
[357469007,1744077068397,-1231.93,0.00025753,2]
[357469008,1744077068408,-500.0,0.00025753,2]
[357469009,1744077068419,-612.52,0.00025753,2]
[357469010,1744077068430,-954.53,0.00025753,2]
[357469011,1744077068440,-500.0,0.00025753,2]
[357469012,1744077068451,-501.24,0.00025753,2]
[357469013,1744077068461,-943.13,0.00025753,2]
[357469014,1744077068472,-500.0,0.00025753,2]
[357469015,1744077068482,-643.13,0.00025753,2]
[357469016,1744077068492,-500.0,0.00025753,2]
[357469017,1744077068503,-1197.82,0.00025753,2]
[357469018,1744077068513,-711.83,0.00025753,2]
[357469019,1744077068524,-500.0,0.00025753,2]
[357469020,1744077068534,-1237.52,0.00025753,2]
[357469021,1744077068544,-816.65,0.00025753,2]
[357469022,1744077068555,-500.0,0.00025753,2]
[357469023,1744077068565,-521.4,0.00025753,2]
[357469024,1744077068575,-677.48,0.00025753,2]
[357469025,1744077068586,-500.0,0.00025753,2]
[357469026,1744077068597,-1015.63,0.00025753,2]
[357469027,1744077068608,-965.83,0.00025753,2]
[357469028,1744077068618,-883.8,0.00025753,2]
[357469029,1744077068629,-955.46,0.00025753,2]
[357469030,1744077068639,-500.0,0.00025753,2]
[357469031,1744077068650,-2195.18,0.00025753,2]
[357469032,1744077068660,-500.0,0.00025753,2]
[357469033,1744077068670,-500.0,0.00025753,2]
[357469034,1744077068680,-1724.47,0.00025753,2]
[357469035,1744077068690,-500.0,0.00025753,2]
[357469036,1744077068703,-500.0,0.00025753,2]
[357469037,1744077068713,-1673.88,0.00025753,2]
[357469038,1744077068724,-500.0,0.00025753,2]
[357469039,1744077068735,-534.14,0.00025753,2]
[357469040,1744077068745,-500.0,0.00025753,2]
[357469041,1744077068755,-500.0,0.00025753,2]
[357469042,1744077068765,-1340.54,0.00025753,2]
[357469043,1744077068775,-542.01,0.00025753,2]
[357469044,1744077068785,-524.96,0.00025753,2]
[357469045,1744077068796,-730.76,0.00025753,2]
[357469046,1744077068810,-1513.16,0.00025753,2]
[357469047,1744077068821,-2076.71,0.00025753,2]
[357469048,1744077068832,-2241.86,0.00025753,2]
[357469049,1744077068843,-1276.21,0.00025753,2]
[357469050,1744077068854,-720.44,0.00025753,2]
[357469051,1744077068865,-2755.26,0.00025753,2]
[357469052,1744077068875,-500.0,0.00025753,2]
[357469053,1744077068886,-500.0,0.00025753,2]
[357469054,1744077068896,-194.28682227,0.00025753,2]
[357469055,1744077068908,-795.94,0.00025753,2]
[357469056,1744077068918,-500.0,0.00025753,2]
[357469057,1744077068929,-500.0,0.00025753,2]
[357469058,1744077068941,-5255.83,0.00025753,2]
[357469059,1744077068952,-1073.11,0.00025753,2]
[357469060,1744077068962,-1335.7,0.00025753,2]
[357469061,1744077068974,-1162.69,0.00025753,2]
[357469062,1744077068984,-561.08,0.00025753,2]
[357469063,1744077068995,-1291.27,0.00025753,2]
[357469064,1744077069006,-2979.5,0.00025753,2]
[357469065,1744077069020,-590.76,0.00025753,2]
[357469066,1744077069031,-1401.91,0.00025753,2]
[357469067,1744077069042,-291.22764961,0.00025753,2]
[357469068,1744077069060,-500.0,0.00025753,2]
[357469069,1744077069072,-500.0,0.00025753,2]
[357469070,1744077069084,-500.0,0.00025753,2]
[357469071,1744077069095,-1531.45,0.00025753,2]
[357469072,1744077069106,-500.0,0.00025753,2]
[357469073,1744077069117,-1855.88,0.00025753,2]
[357469074,1744077069127,-1878.37,0.00025753,2]
[357469075,1744077069137,-500.0,0.00025753,2]
[357469076,1744077069147,-500.0,0.00025753,2]
[357469077,1744077069158,-1906.57,0.00025753,2]
[357469078,1744077069169,-500.0,0.00025753,2]
[357469079,1744077069179,-1498.13,0.00025753,2]
[357469080,1744077069190,-500.0,0.00025753,2]
[357469081,1744077069202,-1165.83,0.00025753,2]
[357469082,1744077069214,-500.0,0.00025753,2]
[357469083,1744077069224,-500.0,0.00025753,2]
[357469084,1744077069235,-455.96637912,0.00025753,2]
[357469085,1744077069246,-1184.51,0.00025753,2]
[357469086,1744077069257,-2926.36,0.00025753,2]
[357469087,1744077069267,-1109.48,0.00025753,2]
[357469088,1744077069278,-8763.46,0.00025753,2]
[357469089,1744077069289,-602.81,0.00025753,2]
[357469090,1744077069299,-1118.42,0.00025753,2]
[357469091,1744077069315,-500.0,0.00025753,2]
[357469092,1744077069325,-500.0,0.00025753,2]
[357469093,1744077069336,-503.7,0.00025753,2]
[357469094,1744077069347,-500.0,0.00025753,2]
[357469095,1744077069357,-500.0,0.00025753,2]
[357469096,1744077069368,-1780.71,0.00025753,2]
[357469097,1744077069378,-1494.33,0.00025753,2]
[357469098,1744077069390,-2426.96,0.00025753,2]
[357469099,1744077069400,-853.03,0.00025753,2]
[357469100,1744077069411,-500.0,0.00025753,2]
[357469101,1744077069421,-500.0,0.00025753,2]
[357469102,1744077069431,-1136.31,0.00025753,2]
[357469103,1744077069442,-2088.72,0.00025753,2]
[357469104,1744077069452,-1347.03,0.00025753,2]
[357469105,1744077069463,-500.0,0.00025875,2]
[357469106,1744077069473,-500.0,0.00025903,2]
[357469107,1744077069483,-500.0,0.00025903,2]
[357469108,1744077069492,-223.0315306,0.00025911,2]
[357469109,1744077069502,-505.48,0.00026027,2]
[357469110,1744077069512,-549.37,0.00026027,2]
[357469111,1744077069522,-989.79,0.00026027,2]
[357469112,1744077069532,-443.51154879,0.00026027,2]
[357469113,1744077069542,-571.51,0.00026027,2]
[357469114,1744077069554,-500.0,0.00026027,2]
[357469115,1744077069564,-500.0,0.00026027,2]
[357469116,1744077069575,-520.89,0.00026027,2]
[357469117,1744077069585,-500.0,0.00026027,2]
[357469118,1744077069596,-1231.93,0.00026027,2]
[357469119,1744077069606,-500.0,0.00026027,2]
[357469120,1744077069616,-612.52,0.00026027,2]
[357469121,1744077069627,-954.53,0.00026027,2]
[357469122,1744077069636,-500.0,0.00026027,2]
[357469123,1744077069647,-501.24,0.00026027,2]
[357469124,1744077069657,-943.13,0.00026027,2]
[357469125,1744077069667,-500.0,0.00026027,2]
[357469126,1744077069677,-643.13,0.00026027,2]
[357469127,1744077069687,-500.0,0.00026027,2]
[357469128,1744077069697,-1197.82,0.00026027,2]
[357469129,1744077069708,-711.83,0.00026027,2]
[357469130,1744077069719,-500.0,0.00026027,2]
[357469131,1744077069730,-1237.52,0.00026027,2]
[357469132,1744077069740,-816.65,0.00026027,2]
[357469133,1744077069750,-500.0,0.00026027,2]
[357469134,1744077069761,-521.4,0.00026027,2]
[357469135,1744077069771,-677.48,0.00026027,2]
[357469136,1744077069781,-500.0,0.00026027,2]
[357469137,1744077069791,-1015.63,0.00026027,2]
[357469138,1744077069803,-965.83,0.00026027,2]
[357469139,1744077069814,-883.8,0.00026027,2]
[357469140,1744077069826,-955.46,0.00026027,2]
[357469141,1744077070007,-500.0,0.00026027,2]
[357469142,1744077070020,-2195.18,0.00026027,2]
[357469143,1744077070030,-500.0,0.00026027,2]
[357469144,1744077070040,-500.0,0.00026027,2]
[357469145,1744077070050,-1724.47,0.00026027,2]
[357469146,1744077070061,-500.0,0.00026027,2]
[357469147,1744077070072,-500.0,0.00026027,2]
[357469148,1744077070081,-1673.88,0.00026027,2]
[357469149,1744077070091,-521.50206092,0.00026027,2]
[357469150,1744077070102,-534.14,0.00026027,2]
[357469151,1744077070112,-500.0,0.00026027,2]
[357469152,1744077070122,-500.0,0.00026027,2]
[357469153,1744077070132,-1340.54,0.00026027,2]
[357469154,1744077070146,-542.01,0.00026027,2]
[357469155,1744077070156,-524.96,0.00026027,2]
[357469156,1744077070166,-730.76,0.00026027,2]
[357469157,1744077070176,-1513.16,0.00026027,2]
[357469158,1744077070186,-2076.71,0.00026027,2]
[357469159,1744077070195,-2241.86,0.00026027,2]
[357469160,1744077070206,-1276.21,0.00026027,2]
[357469161,1744077070216,-720.44,0.00026027,2]
[357469162,1744077070226,-2755.26,0.00026027,2]
[357469163,1744077070236,-500.0,0.00026027,2]
[357469164,1744077070247,-500.0,0.00026027,2]